fUSD/lending_fUSD_20251214
["ID","MTS","AMOUNT","RATE_DAILY","PERIOD"]
[398467191,1765690241863,-500.0,0.00016999,2]
[398467192,1765690241872,-307.76658629,0.00016999,2]
[398467193,1765690241883,-151.0,0.00016999,2]
[398467194,1765690241894,-151.0,0.00016999,2]
[398467195,1765690241904,-151.0,0.00016999,2]
[398467196,1765690241913,-151.0,0.00016999,2]
[398467197,1765690241923,-181.688968,0.00016999,2]
[398467198,1765690241932,-151.0,0.00016999,2]
[398467199,1765690241941,-742.98498988,0.00016999,2]
[398467200,1765690241951,-500.0,0.00016999,2]
[398467201,1765690241959,-500.0,0.00016999,2]
[398467202,1765690241968,-156.65597,0.00016999,2]
[398467203,1765690241977,-563.823395,0.00016999,2]
[398467204,1765690241986,-563.823395,0.00016999,2]
[398467205,1765690241995,-563.823395,0.00016999,2]
[398467206,1765690242004,-563.823395,0.00016999,2]
[398467207,1765690242013,-158.512959,0.00016999,2]
[398467208,1765690242022,-552.890257,0.00016999,2]
[398467209,1765690242031,-300.0,0.00016999,2]
[398467210,1765690242040,-552.890257,0.00016999,2]
[398467211,1765690242049,-552.890257,0.00016999,2]
[398467212,1765690242058,-552.890257,0.00016999,2]
[398467213,1765690242067,-151.0,0.00016999,2]
[398467214,1765690242076,-255.307319,0.00016999,2]
[398467215,1765690242085,-151.0,0.00016999,2]
[398467216,1765690242095,-151.0,0.00016999,2]
[398467217,1765690242104,-151.0,0.00016999,2]
[398467218,1765690242116,-202.401046,0.00016999,2]
[398467219,1765690242125,-202.401046,0.00016999,2]
[398467220,1765690242135,-202.401046,0.00016999,2]
[398467221,1765690242144,-202.401046,0.00016999,2]
[398467222,1765690242155,-699.970751,0.00016999,2]
[398467223,1765690242164,-699.970751,0.00016999,2]
[398467224,1765690242176,-699.970751,0.00016999,2]
[398467225,1765690242186,-151.0,0.00016999,2]
[398467226,1765690242195,-699.970751,0.00016999,2]
[398467227,1765690242205,-151.0,0.00016999,2]
[398467228,1765690242214,-2519.0,0.00017,2]
[398467229,1765690242234,-183871.06451511,0.00017,2]
[398467237,1765690246113,-330.80173516,0.000159,2]
[398467238,1765690246124,-99.24035426,0.000162,2]
[398467248,1765690284146,4167.46182273,0.00015672,2]
[398467249,1765690284178,10000.01,0.00015672,2]
[398467250,1765690284206,10000.01,0.00015672,2]
[398467251,1765690284234,10000.01,0.00015672,2]
[398467252,1765690284261,10000.01,0.00015672,2]
[398467253,1765690284286,10000.01,0.00015672,2]
[398467254,1765690284312,10000.01,0.00015672,2]
[398467255,1765690284344,10000.01,0.00015672,2]
[398467256,1765690284372,10000.01,0.00015672,2]
[398467257,1765690284401,10000.01,0.00015672,2]
[398467258,1765690287629,-439.3568234,0.00015672,2]
[398467259,1765690289712,-223.0315306,0.00015672,2]
[398467260,1765690292568,-519.38581989,0.00015672,2]
[398467261,1765690294023,-478.8388501,0.00015672,2]
[398467262,1765690295468,-251.32279799,0.00015672,2]
[398467263,1765690296556,-8886.5220327,0.00015672,2]
[398467264,1765690300022,-236.39318782,0.00015672,2]
[398467265,1765690300093,-10000.01,0.00015672,2]
[398467266,1765690300111,-10000.01,0.00015672,2]
[398467267,1765690300132,-10000.01,0.00015672,2]
[398467268,1765690300146,-10000.01,0.00015672,2]
[398467269,1765690300161,-10000.01,0.00015672,2]
[398467270,1765690300175,-10000.01,0.00015672,2]
[398467271,1765690300190,-10000.01,0.00015672,2]
[398467272,1765690300208,-10000.01,0.00015672,2]
[398467273,1765690300222,-10000.01,0.00015672,2]
[398467274,1765690300235,-10000.01,0.00015672,2]
[398467275,1765690300250,-10000.01,0.00015672,2]
[398467276,1765690300265,-10000.01,0.00015672,2]
[398467277,1765690300291,-10000.01,0.00015672,2]
[398467278,1765690300311,-10000.01,0.00015672,2]
[398467279,1765690300332,-10000.01,0.00015672,2]
[398467280,1765690313543,-2959.58376995,0.00015671,2]
[398467281,1765690328752,4080.8424601,0.00015593,2]
[398467282,1765690328777,377.5555069,0.00015593,2]
[398467283,1765690381674,300.0,0.00015671,2]
[398467284,1765690384041,300.0,0.00015671,2]
[398467286,1765690501576,300.0,0.00015671,2]
[398467287,1765690501606,300.0,0.00015671,2]
[398467288,1765690502064,1200.0,0.00015671,2]
[398467289,1765690534272,-23000.0,0.00015672,2]
[398467290,1765690538878,1000.0,0.00013699,2]
[398467291,1765690561749,300.0,0.00015671,2]
[398467292,1765690654579,369.50383265,0.00015672,2]
[398467293,1765690683467,1200.0,0.00015671,2]
[398467294,1765690741713,300.0,0.00015671,2]
[398467298,1765690783700,159.06,7.872e-05,2]
[398467299,1765690783735,159.06,8.659e-05,2]
[398467300,1765690783796,159.06,9.446e-05,2]
[398467301,1765690783855,159.06,0.00010234,2]
[398467302,1765690784353,159.06,0.00011021,2]
[398467303,1765690784424,159.06,0.00011808,2]
[398467304,1765690784468,159.06,0.00012595,2]
[398467305,1765690784504,159.06,0.00013382,2]
[398467306,1765690784539,159.06,0.0001417,2]
[398467307,1765690784569,159.06,0.00014957,2]
[398467308,1765690796696,1008.60164063,0.00015654,2]
[398467309,1765690801334,300.0,0.00015671,2]
[398467310,1765690801375,1153.74901982,0.00015671,2]
[398467311,1765690801398,46.25098018,0.00015671,2]
[398467312,1765690801618,300.0,0.00015671,2]
[398467313,1765690803985,281.0,0.00015672,2]
[398467314,1765690861423,300.0,0.00015671,2]
[398467315,1765690921370,300.0,0.00015671,2]
[398467316,1765690921747,300.0,0.00015671,2]
[398467317,1765691023918,179.31,0.00012537,2]
[398467318,1765691024112,179.31,0.00014627,2]
[398467319,1765691042864,300.0,0.00015671,2]
[398467320,1765691101598,300.0,0.00015671,2]
[398467321,1765691104807,1200.0,0.00015671,2]
[398467322,1765691108960,500.0,0.00015669,3]
[398467323,1765691228379,300.0,0.00015616,3]
[398467324,1765691240329,-40704.68803477,0.00015672,2]
[398467325,1765691240350,-1000.0,0.00015672,2]
[398467326,1765691240370,-256.25393423,0.00015708,2]
[398467327,1765691240391,-159.06,0.00015744,2]
[398467328,1765691240411,-500.0,0.00015771,2]
[398467329,1765691240432,-500.0,0.00015771,2]
[398467330,1765691240452,-500.0,0.00015771,2]
[398467331,1765691240472,-500.0,0.00015771,2]
[398467332,1765691240493,-500.0,0.00015771,2]
[398467333,1765691240515,-503.9543882,0.00015771,2]
[398467334,1765691240535,-500.0,0.00015771,2]
[398467335,1765691240555,-500.0,0.00015771,2]
[398467336,1765691240576,-500.0,0.00015771,2]
[398467337,1765691240596,-582.57039835,0.00015771,2]
[398467338,1765691240616,-500.0,0.00015771,2]
[398467339,1765691240636,-500.0,0.00015771,2]
[398467340,1765691243401,464.96,0.00015753,3]
[398467361,1765691289561,11929.29,0.00015691,2]
[398467362,1765691297275,999.0,0.00015695,3]
[398467363,1765691298872,500.0,0.00015572,2]
[398467437,1765691432815,-500.97,0.00015806,2]
[398467439,1765691432824,-282.0,0.00015806,2]
[398467441,1765691432833,-180.511253,0.00015814,2]
[398467443,1765691432842,-300.0,0.00015828,2]
[398467445,1765691432851,-14.09381174,0.00015828,2]
[398467447,1765691432861,-1185.90618826,0.00015828,2]
[398467449,1765691432870,-9611.74,0.00015829,2]
[398467451,1765691432879,-616.71,0.00015858,2]
[398467453,1765691432889,-295.16,0.0001597,2]
[398467455,1765691432898,-250.0,0.00016006,2]
[398467457,1765691432907,-300.0,0.00016149,2]
[398467458,1765691432916,-1111.0,0.00016149,2]
[398467459,1765691432924,-972.0,0.00016149,2]
[398467460,1765691432933,-208.5647437,0.00016149,2]
[398467461,1765691432942,-542.43098461,0.00016149,2]
[398467462,1765691432951,-151.0,0.00016149,2]
[398467463,1765691432960,-250.0,0.00016149,2]
[398467464,1765691432969,-250.0,0.00016149,2]
[398467465,1765691432978,-151.0,0.00016156,2]
[398467466,1765691432987,-154.36880722,0.00016156,2]
[398467467,1765691432996,-208.14499043,0.00016158,2]
[398467468,1765691433005,-208.4507346,0.00016158,2]
[398467469,1765691433014,-425.51655259,0.00016158,2]
[398467470,1765691433023,-4587.41647678,0.00016159,2]
[398467471,1765691433041,-12335.93447976,0.00016159,2]
[398467472,1765691433246,-1070.27345343,0.00016159,2]
[398467473,1765691438235,-500.0,0.00016158,2]
[398467474,1765691438244,-500.0,0.00016158,2]
[398467475,1765691438254,-500.0,0.00016158,2]
[398467476,1765691438264,-500.0,0.00016158,2]
[398467477,1765691438273,-500.0,0.00016158,2]
[398467478,1765691438282,-500.0,0.00016158,2]
[398467479,1765691438292,-500.0,0.00016158,2]
[398467481,1765691438302,-500.0,0.00016158,2]
[398467482,1765691438311,-500.0,0.00016158,2]
[398467483,1765691438320,-500.0,0.00016158,2]
[398467484,1765691438329,-500.0,0.00016158,2]
[398467485,1765691438338,-500.0,0.00016158,2]
[398467486,1765691438347,-260.279427,0.00016158,2]
[398467488,1765691438356,-500.0,0.00016158,2]
[398467490,1765691438365,-500.0,0.00016158,2]
[398467492,1765691438374,-500.0,0.00016158,2]
[398467494,1765691438383,-431.84329121,0.00016158,2]
[398467496,1765691438392,-500.0,0.00016158,2]
[398467498,1765691438402,-500.0,0.00016158,2]
[398467500,1765691438411,-254321.99509003,0.00016159,2]
[398467502,1765691438420,-500.0,0.00016199,2]
[398467504,1765691438429,-500.0,0.00016199,2]
[398467505,1765691438438,-500.0,0.00016199,2]
[398467507,1765691438447,-500.0,0.00016199,2]
[398467509,1765691438456,-633.56956953,0.00016199,2]
[398467511,1765691438465,-152.53,0.000162,2]
[398467513,1765691438475,-152.96,0.000162,2]
[398467515,1765691438484,-150.0,0.000162,2]
[398467517,1765691438493,-150.0,0.000162,2]
[398467519,1765691438503,-150.0,0.000162,2]
[398467522,1765691438512,-150.0,0.000162,2]
[398467523,1765691438522,-150.0,0.000162,2]
[398467525,1765691438531,-150.0,0.000162,2]
[398467528,1765691438540,-1111.0,0.00016204,2]
[398467530,1765691438549,-1111.0,0.00016259,2]
[398467532,1765691438559,-10007.0183,0.00016293,2]
[398467534,1765691438568,-388.42,0.000163,2]
[398467536,1765691438576,-1111.0,0.00016314,2]
[398467538,1765691438585,-6381.7732964,0.00016348,2]
[398467540,1765691438595,-4710.2629147,0.00016348,2]
[398467541,1765691438604,-350.0,0.00016349,2]
[398467544,1765691438614,-1111.0,0.00016369,2]
[398467546,1765691438623,-503.70828138,0.00016373,2]
[398467547,1765691438632,-500.0,0.00016373,2]
[398467550,1765691438642,-500.0,0.00016373,2]
[398467552,1765691438651,-500.0,0.00016373,2]
[398467553,1765691438661,-500.0,0.00016373,2]
[398467555,1765691438670,-500.0,0.00016373,2]
[398467558,1765691438680,-502.18808217,0.00016373,2]
[398467559,1765691438689,-500.0,0.00016373,2]
[398467561,1765691438699,-500.0,0.00016373,2]
[398467563,1765691438708,-500.0,0.00016373,2]
[398467566,1765691438718,-505.23733551,0.00016373,2]
[398467567,1765691438728,-500.0,0.00016373,2]
[398467569,1765691438738,-500.0,0.00016373,2]
[398467570,1765691438748,-500.0,0.00016373,2]
[398467571,1765691438758,-299.7668433,0.00016373,2]
[398467572,1765691438767,-501.65541213,0.00016373,2]
[398467573,1765691438776,-500.0,0.00016373,2]
[398467574,1765691438785,-500.0,0.00016373,2]
[398467575,1765691438794,-177.08742961,0.00016373,2]
[398467576,1765691438803,-503.6789975,0.00016393,2]
[398467577,1765691438813,-553.11,0.000164,2]
[398467578,1765691438822,-553.11,0.000164,2]
[398467579,1765691438831,-553.11,0.000164,2]
[398467580,1765691438840,-553.11,0.000164,2]
[398467581,1765691438850,-1111.0,0.00016424,2]
[398467582,1765691438859,-588.14,0.00016437,2]
[398467583,1765691438868,-500.0,0.00016438,2]
[398467584,1765691438877,-500.0,0.00016438,2]
[398467585,1765691438886,-500.0,0.00016438,2]
[398467586,1765691438894,-500.0,0.00016438,2]
[398467587,1765691438903,-267.40777249,0.00016438,2]
[398467588,1765691438910,-500.0,0.00016438,2]
[398467589,1765691438918,-500.0,0.00016438,2]
[398467590,1765691438926,-500.0,0.00016438,2]
[398467591,1765691438933,-500.0,0.00016438,2]
[398467592,1765691438942,-500.0,0.00016438,2]
[398467593,1765691438951,-500.0,0.00016438,2]
[398467594,1765691438960,-553.11,0.00016438,2]
[398467595,1765691438968,-553.11,0.00016438,2]
[398467596,1765691438977,-529.31143603,0.00016438,2]
[398467597,1765691438989,-23.79856397,0.00016438,2]
[398467598,1765691438999,-553.11,0.00016438,2]
[398467599,1765691439008,-553.11,0.00016438,2]
[398467600,1765691439017,-553.11,0.00016438,2]
[398467601,1765691439026,-553.11,0.00016438,2]
[398467602,1765691439035,-553.11,0.00016438,2]
[398467603,1765691439044,-553.11,0.00016438,2]
[398467604,1765691439058,-551.73,0.00016438,2]
[398467605,1765691439068,-1111.0,0.00016479,2]
[398467606,1765691439077,-230.16,0.00016489,2]
[398467607,1765691439087,-562.89,0.000165,2]
[398467608,1765691439096,-200.0,0.00016546,2]
[398467609,1765691439105,-557.21129321,0.0001666,2]
[398467610,1765691439115,-1009.0,0.000167,2]
[398467611,1765691439124,-588.14,0.00016711,2]
[398467612,1765691439134,-150.0,0.00016712,2]
[398467613,1765691439143,-150.0,0.00016712,2]
[398467614,1765691439153,-150.0,0.00016712,2]
[398467615,1765691439162,-150.0,0.00016712,2]
[398467616,1765691439171,-500.0,0.00016712,2]
[398467617,1765691439180,-150.0,0.00016712,2]
[398467618,1765691439190,-150.0,0.00016712,2]
[398467619,1765691439200,-150.0,0.00016712,2]
[398467620,1765691439209,-150.0,0.00016712,2]
[398467621,1765691439219,-500.0,0.00016712,2]
[398467622,1765691439229,-150.0,0.00016712,2]
[398467623,1765691439238,-150.0,0.00016712,2]
[398467624,1765691439247,-150.0,0.00016712,2]
[398467625,1765691439256,-2069.0,0.00016712,2]
[398467626,1765691439266,-200.0,0.00016712,2]
[398467627,1765691439276,-172.09871267,0.00016712,2]
[398467628,1765691439285,-150.0,0.00016712,2]
[398467629,1765691439294,-500.0,0.00016712,2]
[398467630,1765691439303,-152.55217976,0.00016712,2]
[398467631,1765691439314,-150.0,0.00016712,2]
[398467632,1765691439323,-179.31,0.00016716,2]
[398467633,1765691439332,-2000.0,0.000168,2]
[398467634,1765691439341,-2000.0,0.000168,3]
[398467635,1765691439350,-28011.06218045,0.0001683,2]
[398467636,1765691439360,-6258.25037,0.0001683,2]
[398467637,1765691439369,-543.65,0.00016837,2]
[398467638,1765691439378,-150.0,0.00016849,2]
[398467639,1765691439388,-150.0,0.00016849,2]
[398467640,1765691439397,-150.0,0.00016849,2]
[398467641,1765691439406,-500.0,0.00016849,2]
[398467642,1765691439415,-150.0,0.00016849,2]
[398467643,1765691439426,-200.0,0.00016849,2]
[398467644,1765691439435,-523.01620776,0.00016849,2]
[398467645,1765691439444,-192.083485,0.00016849,2]
[398467646,1765691439453,-2069.0,0.00016849,2]
[398467647,1765691439463,-150.0,0.00016849,2]
[398467648,1765691439472,-500.0,0.00016849,2]
[398467649,1765691439481,-150.0,0.00016849,2]
[398467650,1765691439490,-200.0,0.00016864,2]
[398467651,1765691439499,-17719.5621,0.000169,2]
[398467652,1765691439508,-1806.86210347,0.000169,2]
[398467653,1765691439518,-177.39418417,0.000169,2]
[398467654,1765691439528,-10000.0,0.00016901,2]
[398467655,1765691439538,-935.85027861,0.00016921,2]
[398467656,1765691439547,-504.65357336,0.00016921,2]
[398467657,1765691439557,-1000.0,0.00016921,2]
[398467658,1765691439566,-1000.0,0.00016921,2]
[398467659,1765691439575,-1000.0,0.00016921,2]
[398467660,1765691439585,-937.93121224,0.00016921,2]
[398467661,1765691439594,-505.46898713,0.00016921,2]
[398467662,1765691439604,-856.40733576,0.00016921,2]
[398467663,1765691439614,-1000.0,0.00016921,2]
[398467664,1765691439623,-6258.25037,0.0001695,2]
[398467665,1765691439633,-481.15230225,0.00016951,2]
[398467666,1765691439642,-316.0,0.00016971,2]
[398467667,1765691439651,-487.452036,0.00016973,2]
[398467668,1765691439661,-506.84168924,0.00016973,2]
[398467669,1765691439670,-500.0,0.00016973,2]
[398467670,1765691439680,-500.0,0.00016973,2]
[398467671,1765691439689,-500.0,0.00016973,2]
[398467672,1765691439699,-500.0,0.00016973,2]
[398467673,1765691439708,-500.0,0.00016973,2]
[398467674,1765691439718,-537.10639322,0.00016973,2]
[398467675,1765691439727,-507.12671116,0.00016973,2]
[398467676,1765691439737,-500.0,0.00016973,2]
[398467677,1765691439746,-252.27657404,0.00016973,2]
[398467678,1765691439756,-500.0,0.00016973,2]
[398467679,1765691439766,-500.0,0.00016973,2]
[398467680,1765691439775,-588.14,0.00016985,2]
[398467681,1765691439785,-150.0,0.00016986,2]
[398467682,1765691439794,-250.0,0.00016986,2]
[398467683,1765691439803,-150.0,0.00016986,2]
[398467684,1765691439812,-586.29411008,0.00016986,2]
[398467685,1765691439822,-238.16065675,0.00016986,2]
[398467686,1765691439831,-2069.0,0.00016986,2]
[398467687,1765691439841,-642.64251225,0.00016986,2]
[398467688,1765691439850,-500.0,0.00016999,2]
[398467689,1765691439859,-500.0,0.00016999,2]
[398467690,1765691439869,-500.0,0.00016999,2]
[398467691,1765691439878,-500.0,0.00016999,2]
[398467692,1765691439888,-500.0,0.00016999,2]
[398467693,1765691439897,-500.0,0.00016999,2]
[398467694,1765691439907,-213.2497066,0.00016999,2]
[398467695,1765691439917,-3800.778,0.00016999,2]
[398467696,1765691439927,-165.288,0.00016999,2]
[398467697,1765691439936,-182.88370463,0.00016999,2]
[398467698,1765691439945,-500.0,0.00016999,2]
[398467699,1765691439955,-500.0,0.00016999,2]
[398467700,1765691439964,-500.0,0.00016999,2]
[398467701,1765691439973,-500.0,0.00016999,2]
[398467702,1765691439983,-500.0,0.00016999,2]
[398467703,1765691439992,-300.0,0.00016999,2]
[398467704,1765691440001,-666.0,0.00016999,2]
[398467705,1765691440011,-22606.52034805,0.00017,2]
[398467707,1765691440207,-1055.48384062,0.00017,2]
[398467708,1765691440321,-1399.2127069,0.00017,2]
[398467709,1765691440332,-370.72533774,0.00017,2]
[398467710,1765691440545,-5590.8622139,0.00017,2]
[398467713,1765691443129,-2016.0,0.00017,2]
[398467714,1765691443138,-14439.23780097,0.00017,2]
[398467715,1765691443345,-1282.3968458,0.00017,2]
[398467716,1765691446276,-2000.0,0.000164,2]
[398467717,1765691446286,-4672.11680749,0.00017,2]
[398467734,1765691856978,-250.0,0.00015773,2]
[398467735,1765691865662,-967.76,0.00015901,2]
[398467736,1765691865683,-152.64,0.00015901,2]
[398467737,1765691865703,-150.16,0.00015901,2]
[398467738,1765691865723,-152.62,0.00015901,2]
[398467739,1765691865745,-1000.0,0.00015918,2]
[398467740,1765691865766,-150.71,0.00015918,2]
[398467741,1765691865787,-3240.0,0.00015949,2]
[398467742,1765691865808,-1500.0,0.00016,2]
[398467747,1765692312085,1271.65,0.00015743,2]
[398467748,1765692317846,168.0,0.00015741,2]
[398467749,1765692322610,3559.9,0.00015716,2]
[398467750,1765692323997,168.0,0.00015855,2]
[398467751,1765692329264,168.0,0.00015884,2]
[398467756,1765692443700,500.0,0.00016,2]
[398467757,1765692455776,3430.98,0.00015703,2]
[398467758,1765692606083,150.0,0.00015705,2]
[398467759,1765692632232,-200.0,0.00016014,2]
[398467760,1765692632241,-1200.0,0.00016148,2]
[398467761,1765692632250,-1111.0,0.00016149,2]
[398467762,1765692632260,-176.83085212,0.00016149,2]
[398467763,1765692632269,-152.62956156,0.00016149,2]
[398467764,1765692632277,-300.0,0.00016149,2]
[398467765,1765692632287,-152.71,0.00016157,2]
[398467766,1765692632302,-152.83,0.00016157,2]
[398467767,1765692632311,-579.99190904,0.00016158,2]
[398467768,1765692632320,-300.0,0.00016183,2]
[398467769,1765692632331,-300.0,0.00016183,2]
[398467770,1765692632340,-1200.0,0.00016185,2]
[398467771,1765692632350,-1845.0,0.00016186,2]
[398467772,1765692632359,-150.0,0.000162,2]
[398467773,1765692632370,-150.0,0.000162,2]
[398467774,1765692632382,-150.0,0.000162,2]
[398467775,1765692632391,-150.0,0.000162,2]
[398467776,1765692632400,-150.0,0.000162,2]
[398467777,1765692632409,-150.0,0.000162,2]
[398467778,1765692632418,-1111.0,0.00016204,2]
[398467779,1765692632427,-166.59,0.00016229,2]
[398467780,1765692632436,-206.30927524,0.00016232,2]
[398467781,1765692632445,-1111.0,0.00016259,2]
[398467782,1765692632454,-168.0,0.00016269,2]
[398467783,1765692632468,-676.26740307,0.00016275,2]
[398467784,1765692632477,-1111.0,0.00016314,2]
[398467785,1765692632487,-574.12855637,0.00016363,2]
[398467786,1765692632497,-151.0,0.00016363,2]
[398467787,1765692632506,-1111.0,0.00016369,2]
[398467788,1765692632516,-502.18808217,0.00016373,2]
[398467790,1765692632526,-500.0,0.00016373,2]
[398467792,1765692632535,-500.0,0.00016373,2]
[398467794,1765692632544,-500.0,0.00016373,2]
[398467796,1765692632553,-500.0,0.00016373,2]
[398467798,1765692632562,-500.0,0.00016373,2]
[398467799,1765692632571,-505.23733551,0.00016373,2]
[398467801,1765692632581,-503.70828138,0.00016373,2]
[398467802,1765692632590,-500.0,0.00016373,2]
[398467803,1765692632599,-500.0,0.00016373,2]
[398467804,1765692632607,-500.0,0.00016373,2]
[398467805,1765692632617,-299.7668433,0.00016373,2]
[398467806,1765692632627,-500.0,0.00016373,2]
[398467807,1765692632636,-500.0,0.00016373,2]
[398467808,1765692632645,-500.0,0.00016373,2]
[398467809,1765692632654,-500.0,0.00016373,2]
[398467810,1765692632664,-501.65541213,0.00016373,2]
[398467811,1765692632675,-177.08742961,0.00016373,2]
[398467812,1765692632685,-1111.0,0.00016424,2]
[398467813,1765692632695,-1111.0,0.00016479,2]
[398467814,1765692632707,-543.65,0.00016532,2]
[398467815,1765692632717,-1407.12,0.000166,2]
[398467816,1765692632726,-703.86,0.000166,2]
[398467817,1765692632736,-703.86,0.000166,2]
[398467818,1765692632745,-703.86,0.000166,2]
[398467819,1765692632754,-350.0,0.00016614,2]
[398467820,1765692632763,-427.05762699,0.0001666,2]
[398467821,1765692632772,-2375.0,0.000167,3]
[398467822,1765692632781,-253.48,0.00016705,2]
[398467823,1765692632791,-150.0,0.00016712,2]
[398467824,1765692632800,-500.0,0.00016712,2]
[398467825,1765692632810,-215.10848843,0.00016712,2]
[398467826,1765692632819,-1874.0,0.00016712,2]
[398467827,1765692632828,-257.32829514,0.00016712,2]
[398467828,1765692632839,-500.0,0.00016712,2]
[398467829,1765692632849,-150.0,0.000168,2]
[398467830,1765692632858,-543.65,0.00016806,2]
[398467831,1765692632867,-3044.92716938,0.00016822,2]
[398467832,1765692632878,-4593.05551,0.0001683,2]
[398467833,1765692632887,-150.0,0.00016849,2]
[398467834,1765692632896,-500.0,0.00016849,2]
[398467835,1765692632906,-1874.0,0.00016849,2]
[398467836,1765692632915,-500.0,0.00016849,2]
[398467837,1765692632924,-66.483335,0.00016864,2]
[398467838,1765692632936,-133.516665,0.00016864,2]
[398467839,1765692632945,-5850.238,0.00016878,2]
[398467840,1765692632955,-176.67133304,0.00016878,2]
[398467841,1765692632967,-9830.34696696,0.00016878,2]
[398467842,1765692632976,-1015.3608829,0.00016885,2]
[398467843,1765692632987,-8754.706939,0.00016885,2]
[398467844,1765692632996,-1741.6958811,0.00016885,2]
[398467845,1765692633005,-500.0,0.00016898,2]
[398467846,1765692633014,-251.14215855,0.00016898,2]
[398467847,1765692633023,-530.74023107,0.00016898,2]
[398467848,1765692633033,-500.0,0.00016898,2]
[398467849,1765692633042,-500.0,0.00016898,2]
[398467850,1765692633051,-500.0,0.00016898,2]
[398467851,1765692633061,-500.0,0.00016898,2]
[398467852,1765692633070,-386.16600261,0.00016898,2]
[398467853,1765692633081,-113.83399739,0.00016898,2]
[398467854,1765692633091,-420.29189484,0.00016898,2]
[398467855,1765692633099,-500.0,0.00016898,2]
[398467856,1765692633109,-500.0,0.00016898,2]
[398467857,1765692633119,-500.0,0.00016898,2]
[398467858,1765692633128,-500.0,0.00016898,2]
[398467859,1765692633137,-500.0,0.00016898,2]
[398467860,1765692633146,-500.0,0.00016898,2]
[398467861,1765692633155,-500.0,0.00016898,2]
[398467862,1765692633165,-500.0,0.00016898,2]
[398467863,1765692633175,-500.0,0.00016898,2]
[398467864,1765692633184,-500.0,0.00016898,2]
[398467865,1765692633193,-500.0,0.00016898,2]
[398467866,1765692633202,-500.0,0.00016898,2]
[398467867,1765692633211,-500.0,0.00016898,2]
[398467868,1765692633221,-500.0,0.00016898,2]
[398467869,1765692633230,-500.0,0.00016898,2]
[398467870,1765692633239,-500.0,0.00016898,2]
[398467871,1765692633248,-500.0,0.00016898,2]
[398467872,1765692633258,-502.72945743,0.00016898,2]
[398467873,1765692633267,-500.0,0.00016898,2]
[398467874,1765692633276,-500.0,0.00016898,2]
[398467875,1765692633285,-500.0,0.00016898,2]
[398467876,1765692633298,-500.0,0.00016898,2]
[398467877,1765692633307,-600.0,0.00016898,2]
[398467878,1765692633317,-500.0,0.00016898,2]
[398467879,1765692633327,-500.0,0.00016898,2]
[398467880,1765692633337,-500.0,0.00016898,2]
[398467881,1765692633347,-500.0,0.00016898,2]
[398467882,1765692633356,-500.0,0.00016898,2]
[398467883,1765692633367,-500.0,0.00016898,2]
[398467884,1765692633376,-500.0,0.00016898,2]
[398467885,1765692633386,-500.0,0.00016898,2]
[398467886,1765692633396,-500.0,0.00016898,2]
[398467887,1765692633406,-500.0,0.00016898,2]
[398467888,1765692633415,-500.0,0.00016898,2]